bitfinex/quotes_ETHUSD_20250518
["timestamp","ask_amount","ask_price","bid_price","bid_amount"]
[1747548397567,7.847,2509.0,2508.6,3.98619533]
[1747548398756,7.847,2509.0,2508.7,0.37901151]
[1747548399757,7.847,2509.0,2508.5,5.51387015]
[1747548400351,11.83266405,2509.0,2508.5,5.51387015]
[1747548400757,11.83266405,2509.0,2508.6,0.37904245]
[1747548400992,0.82829654,2508.9,2508.6,0.37904245]
[1747548402992,0.82829654,2508.9,2508.5,3.98637015]
[1747548403865,0.82829654,2508.9,2508.6,3.98621823]
[1747548404057,7.847,2509.0,2508.6,3.98621823]
[1747548404258,7.847,2509.0,2508.7,0.37891505]
[1747548404494,9.346,2509.2,2508.7,0.37891505]
[1747548404495,1.509,2509.2,2508.7,0.37891505]
[1747548404798,7.846,2509.0,2508.7,4.36497001]
[1747548405590,7.846,2509.0,2508.8,3.98596068]
[1747548405893,7.846,2509.0,2508.7,1.95741505]
[1747548405894,7.846,2509.0,2508.7,5.94347612]
[1747548406092,7.846,2509.0,2508.6,3.98622247]
[1747548408270,7.846,2509.0,2508.8,3.98595359]
[1747548408461,7.846,2509.0,2508.7,3.98604786]
[1747548409285,7.846,2509.0,2508.8,0.37860863]
[1747548410758,7.846,2509.0,2508.7,3.98612061]
[1747548411768,3.98524481,2509.3,2508.7,3.98612061]
[1747548411998,0.96290061,2509.2,2508.7,3.98612061]
[1747548412190,8.79390061,2509.2,2508.7,3.98612061]
[1747548412572,0.96290061,2509.2,2508.8,3.98591946]
[1747548412773,7.831,2509.1,2508.8,3.98591946]
[1747548413991,7.831,2509.1,2508.9,0.37898239]
[1747548414195,7.831,2509.1,2508.9,4.36479287]
[1747548414390,7.831,2509.1,2508.9,5.91359287]
[1747548415683,7.831,2509.1,2509.0,0.37898239]
[1747548417516,14.65681408,2509.1,2509.0,0.37898239]
[1747548418012,10.67132128,2509.1,2509.0,0.37898239]
[1747548418378,10.67132128,2509.1,2508.6,3.98624986]
[1747548418586,9.4897,2509.1,2508.6,3.98624986]
[1747548418810,9.4897,2509.1,2508.7,3.98603559]
[1747548418985,7.831,2509.1,2508.7,3.98603559]
[1747548419193,7.83,2509.0,2508.8,3.98586391]
[1747548419905,1.64,2509.3,2508.9,0.37907468]
[1747548420214,7.83,2509.2,2509.0,3.98553794]
[1747548420563,7.83,2509.2,2508.9,4.36480876]
[1747548420765,7.83,2509.2,2508.9,4.36488131]
[1747548421002,7.83,2509.2,2509.0,0.37907468]
[1747548421383,12.9969186,2509.2,2509.0,0.37907468]
[1747548421579,1.6463,2509.1,2509.0,0.37907468]
[1747548422778,1.1815017,2509.2,2509.0,0.37907468]
[1747548423092,19.72759978,2509.5,2509.0,0.37907468]
[1747548423093,7.83,2509.1,2509.0,0.37907468]
[1747548423600,9.4337,2509.4,2509.0,4.36464763]
[1747548423601,7.83,2509.2,2509.0,4.36464763]
[1747548424268,7.83,2509.3,2509.0,4.36464763]
[1747548424768,7.83,2509.3,2509.1,0.37907468]
[1747548425191,3.98504619,2509.4,2509.1,0.37907468]
[1747548425395,9.80277671,2509.3,2509.1,0.37907468]
[1747548425700,1.97277671,2509.3,2509.1,0.37907468]
[1747548425915,7.83,2509.3,2509.2,0.37907468]
[1747548427600,7.83,2509.3,2509.0,0.37907468]
[1747548427905,7.83,2509.3,2509.1,3.98548575]
[1747548428283,14.346,2509.5,2509.1,3.98548575]
[1747548428480,7.83,2509.4,2509.1,3.98548575]
[1747548428801,7.83,2509.4,2509.2,1.89297468]
[1747548429309,14.346,2509.5,2509.2,1.89297468]
[1747548429603,0.51568116,2511.7,2509.2,1.89297468]
[1747548429604,7.83,2510.2,2509.6,1.5139]
[1747548430201,7.83,2510.2,2509.8,3.98435355]
[1747548430404,7.83,2510.2,2509.7,3.98446897]
[1747548430902,7.83,2510.2,2509.9,0.37907468]
[1747548431609,3.98406374,2510.0,2509.9,0.37907468]
[1747548431781,3.98406374,2510.0,2509.6,1.98666115]
[1747548432105,3.98398171,2510.1,2509.6,1.98666115]
[1747548432292,3.98398171,2510.1,2509.6,5.97134576]
[1747548432702,11.81281877,2510.2,2509.6,5.97134576]
[1747548433405,11.81281877,2510.2,2509.7,0.37833757]
[1747548434508,7.829,2510.2,2509.7,3.98450585]
[1747548434708,11.81277303,2510.2,2509.7,3.98450585]
[1747548435282,11.81277303,2510.2,2509.6,5.49852895]
[1747548435704,7.829,2510.2,2509.7,3.98450983]
[1747548436017,7.829,2510.2,2509.6,5.49852853]
[1747548436314,7.829,2510.2,2509.7,3.98444057]
[1747548436475,11.8127562,2510.2,2509.7,3.98444057]
[1747548437114,11.8127562,2510.2,2509.6,5.49852355]
[1747548437407,11.8127562,2510.2,2509.7,0.37786365]
[1747548437722,3.98392644,2510.1,2509.7,0.37786365]
[1747548439288,3.98392644,2510.1,2509.6,1.5139]
[1747548439491,3.98439177,2509.8,2509.4,1.6554]
[1747548439690,6.89888732,2510.0,2509.3,12.26993054]
[1747548439691,3.98429858,2509.9,2509.3,12.26993054]
[1747548440299,3.98429858,2509.9,2509.3,4.45793054]
[1747548440516,3.98429858,2509.9,2509.4,0.37789305]
[1747548440701,6.89895805,2510.0,2509.4,4.3629055]
[1747548440998,3.98429254,2509.9,2509.4,0.37789305]
[1747548441194,3.98449171,2509.8,2509.4,0.37789305]
[1747548441394,1.39672095,2509.8,2509.4,0.37789305]
[1747548441606,3.98485754,2509.5,2509.4,0.37789305]
[1747548442025,5.50295754,2509.5,2509.4,0.37789305]
[1747548442330,3.98501633,2509.4,2508.8,3.98595887]
[1747548442693,3.38773772,2509.5,2508.9,3.98579413]
[1747548442694,7.37266582,2509.5,2508.9,3.98579413]
[1747548442905,3.38773772,2509.5,2508.9,3.98568022]
[1747548443120,7.812,2509.4,2509.0,3.98554245]
[1747548443456,7.812,2509.4,2509.1,3.98548621]
[1747548443727,7.812,2509.5,2509.1,1.6554]
[1747548444026,11.79685968,2509.5,2509.1,1.6554]
[1747548444200,11.79685968,2509.5,2508.9,5.64113583]
[1747548444400,3.98505772,2509.4,2508.9,1.6554]
[1747548444618,11.79691468,2509.5,2508.9,5.64119084]
[1747548444803,3.98508647,2509.4,2508.9,1.6554]
[1747548445205,5.56328345,2509.4,2508.9,1.6554]
[1747548445405,1.57820012,2509.4,2508.9,1.6554]
[1747548445604,7.812,2509.5,2509.0,3.98564994]
[1747548445891,7.812,2509.4,2509.0,3.9856431]
[1747548446300,7.812,2509.4,2509.1,0.37812489]
[1747548446718,3.98517514,2509.3,2509.1,0.37812489]
[1747548447433,5.50327514,2509.3,2509.1,0.37812489]
[1747548447591,7.37298033,2509.3,2508.7,6.11428224]
[1747548448606,7.37305059,2509.3,2508.7,2.12816115]
[1747548448805,7.37305059,2509.3,2508.7,10.12816115]
[1747548449311,3.38780519,2509.3,2508.8,4.36426674]
[1747548450352,7.37302149,2509.3,2508.8,0.37830276]
[1747548450653,7.37302149,2509.3,2508.9,0.37830276]
[1747548450932,3.38780519,2509.3,2508.9,0.37830276]
[1747548451137,7.3729906,2509.3,2508.9,0.37830276]
[1747548451335,1.51849906,2509.2,2508.9,0.37830276]
[1747548451536,1.5595,2509.1,2508.9,0.37830276]
[1747548451737,3.98565165,2509.0,2508.9,0.37830276]
[1747548451906,5.54515165,2509.0,2508.9,0.37830276]
[1747548452107,3.98612827,2508.7,2508.4,0.47276115]
[1747548452325,11.79912827,2508.7,2508.4,0.47276115]
[1747548452530,3.98643302,2508.6,2508.4,0.47276115]
[1747548452837,5.55404608,2508.5,2508.4,0.47276115]
[1747548453542,6.95076703,2508.5,2508.4,0.47276115]
[1747548455614,3.98671514,2508.4,2507.9,0.37865396]
[1747548457048,3.98677896,2508.3,2507.9,0.37865396]
[1747548457543,3.98677896,2508.3,2507.8,1.5497]
[1747548457840,3.98668245,2508.4,2507.8,5.53722561]
[1747548458013,7.815,2508.4,2507.8,1.5497]
[1747548458214,11.80160653,2508.4,2507.8,5.53716885]
[1747548458652,7.815,2508.4,2507.9,3.98738423]
[1747548458837,7.815,2508.4,2507.8,1.5497]
[1747548459037,7.815,2508.4,2507.9,3.98726483]
[1747548459236,7.815,2508.4,2508.0,3.98723428]
[1747548459919,7.815,2508.3,2508.0,3.98723428]
[1747548460125,7.815,2508.3,2507.9,3.9873297]
[1747548460328,7.815,2508.3,2507.8,5.537213]
[1747548461644,8.99516416,2508.3,2507.8,5.537213]
[1747548461866,8.99516416,2508.3,2507.8,5.53725383]
[1747548462239,10.56276416,2508.3,2507.8,5.53725383]
[1747548462548,14.54953254,2508.3,2507.8,1.5497]
[1747548462846,14.54953776,2508.3,2507.8,1.5497]
[1747548463045,10.56276416,2508.3,2507.8,1.5497]
[1747548463246,1.4549399,2508.2,2507.7,8.0]
[1747548464551,1.4549399,2508.2,2507.6,9.5996]
[1747548464753,5.44192145,2508.2,2507.5,3.98797016]
[1747548465054,3.98708449,2508.1,2507.5,3.98797016]
[1747548465253,3.98708449,2508.1,2507.4,13.39067537]
[1747548465423,5.44193352,2508.2,2507.5,4.36584481]
[1747548465622,0.88430533,2508.1,2507.5,4.36584481]
[1747548466036,0.88430533,2508.1,2507.6,3.98787561]
[1747548466237,0.88430533,2508.1,2507.5,4.36581859]
[1747548466436,1.4549399,2508.2,2507.5,4.36581859]
[1747548466636,1.4549399,2508.2,2507.7,3.98768372]
[1747548468143,1.4549399,2508.2,2507.7,3.98761691]
[1747548469666,9.3826,2508.3,2507.9,5.58699482]
[1747548469854,7.815,2508.3,2507.9,5.58699482]
[1747548470037,7.815,2508.3,2507.9,1.5996]
[1747548470237,7.815,2508.3,2507.7,5.58723959]
[1747548471142,1.52,2508.2,2507.7,5.58723959]
[1747548471346,2.85216754,2508.2,2507.7,1.5996]
[1747548471541,6.83913941,2508.2,2507.8,0.37844651]
[1747548472934,6.83913941,2508.2,2507.5,13.38756643]
[1747548473133,2.85216754,2508.2,2507.6,3.98785201]
[1747548474249,2.85216754,2508.2,2507.5,9.3996]
[1747548474250,2.85216754,2508.2,2507.7,0.37857968]
[1747548474554,9.321,2508.2,2507.7,4.36619904]
[1747548475585,9.321,2508.2,2507.8,0.37857968]
[1747548475752,13.30803878,2508.2,2507.8,0.37857968]
[1747548475952,9.321,2508.2,2507.8,0.37857968]
[1747548476354,9.321,2508.2,2507.7,0.37857968]
[1747548476556,1.47045475,2508.1,2507.7,0.37857968]
[1747548477954,5.45761732,2508.1,2507.7,0.37857968]
[1747548478174,3.98726308,2508.0,2507.7,0.37857968]
[1747548478343,1.6241,2507.9,2507.7,0.37857968]
[1747548478769,1.6241,2507.9,2507.5,0.85134083]
[1747548480071,1.47045475,2508.1,2507.5,0.85134083]
[1747548480287,7.802,2508.0,2507.6,3.98776828]
[1747548480895,7.802,2508.3,2507.8,3.98754719]
[1747548481597,7.802,2508.3,2507.9,3.98736325]
[1747548481945,7.802,2508.3,2507.8,3.98749035]
[1747548482143,7.802,2508.3,2507.7,5.60078777]
[1747548482846,11.78876457,2508.3,2507.8,0.37857968]
[1747548483046,3.98694213,2508.2,2507.8,0.37857968]
[1747548483273,3.98692289,2508.2,2507.8,0.37857968]
[1747548483472,3.98708185,2508.1,2507.8,0.37857968]
[1747548483684,1.5761,2508.0,2507.8,0.37857968]
[1747548483870,5.5633513,2508.0,2507.8,0.37857968]
[1747548484081,0.55633513,2507.9,2507.8,0.37857968]
[1747548484461,1.5761,2508.0,2507.8,0.37857968]
[1747548484965,9.3781,2508.2,2507.8,0.37857968]
[1747548485159,1.5761,2508.2,2507.8,0.37857968]
[1747548485359,5.56275123,2508.4,2507.8,0.37857968]
[1747548485565,12.34504719,2508.3,2507.8,0.37857968]
[1747548485764,8.35827512,2508.3,2507.8,0.37857968]
[1747548486284,8.35827512,2508.3,2507.9,0.37857968]
[1747548486586,12.34505472,2508.3,2507.9,0.37857968]
[1747548486798,3.98705204,2508.2,2507.9,0.37857968]
[1747548486952,5.62031007,2508.1,2507.9,0.37857968]
[1747548487977,5.62031007,2508.1,2508.0,0.37857968]
[1747548489702,7.19641007,2508.1,2508.0,0.37857968]
[1747548491106,3.20931068,2508.1,2508.0,0.37857968]
[1747548491294,7.802,2508.2,2508.0,0.37857968]
[1747548491684,9.3781,2508.3,2508.0,0.37857968]
[1747548492281,13.36492782,2508.3,2508.0,0.37857968]
[1747548492486,9.3781,2508.3,2508.0,0.37857968]
[1747548492682,13.36486988,2508.3,2508.0,0.37857968]
[1747548493007,11.25290919,2508.3,2508.1,0.37857968]
[1747548493307,9.67680919,2508.3,2508.1,0.37857968]
[1747548494473,13.66360764,2508.3,2508.1,0.37857968]
[1747548494670,3.98692289,2508.2,2508.1,0.37857968]
[1747548495780,5.59232289,2508.2,2508.1,0.37857968]
[1747548495980,7.6575866,2508.2,2508.1,0.37857968]
[1747548496814,7.6575866,2508.2,2507.9,0.37857968]
[1747548497012,3.67066371,2508.2,2507.9,0.37857968]
[1747548497193,1.6054,2508.2,2507.9,0.37857968]
[1747548497394,11.78877089,2508.3,2507.9,0.37857968]
[1747548498316,11.78877089,2508.3,2508.0,0.37857968]
[1747548499695,11.78877089,2508.3,2508.1,0.37857968]
[1747548499894,3.98692289,2508.2,2508.1,0.37857968]
[1747548504604,3.98713363,2508.1,2507.8,0.37857968]
[1747548504803,3.98726915,2508.0,2507.8,0.37857968]
[1747548505001,3.98692289,2508.2,2507.8,0.37857968]
[1747548505002,3.98739981,2507.9,2507.8,0.37857968]
[1747548505206,1.5054,2508.1,2507.8,0.37857968]
[1747548505523,3.98739981,2507.9,2507.8,0.37857968]
[1747548505695,3.98732502,2508.0,2507.8,0.37857968]
[1747548506221,3.98732502,2508.0,2507.9,0.37857968]
[1747548507008,4.93529568,2508.0,2507.9,0.37857968]
[1747548509432,3.98732502,2508.0,2507.9,0.37857968]
[1747548512637,3.98712317,2508.1,2507.9,0.37857968]
[1747548513839,3.98724082,2508.0,2507.9,0.37857968]
[1747548516202,3.98724082,2508.0,2507.7,0.37857968]
[1747548516203,3.98755881,2507.8,2507.7,0.37857968]
[1747548521548,3.98771782,2507.7,2507.4,0.37857968]
[1747548522922,3.98771782,2507.7,2507.5,0.37857968]
[1747548523338,3.98787685,2507.6,2507.5,0.37857968]
[1747548523627,4.9249668,2507.7,2507.5,0.37857968]
[1747548524648,13.36587685,2507.6,2507.5,0.37857968]
[1747548525455,3.98813541,2507.5,2507.3,0.37857968]
[1747548526363,3.98813541,2507.5,2507.2,0.37857968]
[1747548526742,3.9879316,2507.6,2507.2,0.37857968]
[1747548526926,7.788,2507.5,2507.2,0.37857968]
[1747548528362,7.788,2507.9,2507.3,1.5538]
[1747548528553,3.9876451,2507.8,2507.3,1.5538]
[1747548529328,3.9876451,2507.8,2507.4,0.37857968]
[1747548531166,6.72857885,2507.8,2507.4,0.37857968]
[1747548533273,3.9876451,2507.8,2507.4,0.37857968]
[1747548533647,3.98774281,2507.7,2507.4,0.37857968]
[1747548534876,3.98756558,2507.8,2507.4,0.37857968]
[1747548535448,3.98756558,2507.8,2507.5,0.37857968]
[1747548537194,3.98756558,2507.8,2507.4,0.37857968]
[1747548537389,11.77543805,2507.9,2507.4,0.37857968]
[1747548537882,3.98759741,2507.8,2507.4,0.37857968]
[1747548538382,3.98759741,2507.8,2507.5,0.37857968]
[1747548538789,11.77544283,2507.9,2507.5,0.37857968]
[1747548538994,11.77544283,2507.9,2507.6,1.6098]
[1747548539199,7.788,2507.9,2507.6,1.6098]
[1747548539399,9.16872095,2508.5,2507.8,1.6098]
[1747548539559,3.98673349,2508.4,2507.8,1.6098]
[1747548539758,3.98676871,2508.3,2507.8,1.6098]
[1747548539973,3.98666095,2508.4,2507.8,1.6098]
[1747548541198,3.98684007,2508.3,2507.9,0.37857968]
[1747548541398,3.98664754,2508.4,2507.9,0.37857968]
[1747548541555,3.98693369,2508.2,2507.9,0.37857968]
[1747548541761,3.98717615,2508.1,2507.9,0.37857968]
[1747548542057,3.98718753,2508.1,2507.9,0.37857968]
[1747548542599,1.39672095,2508.3,2507.9,0.37857968]
[1747548542997,3.98703355,2508.2,2507.9,0.37857968]
[1747548543297,3.98684738,2508.3,2507.9,0.37857968]
[1747548544693,3.986605,2508.4,2507.9,0.37857968]
[1747548544922,3.98698037,2508.2,2507.9,0.37857968]
[1747548545099,3.98683567,2508.3,2507.9,0.37857968]
[1747548545398,3.98683567,2508.3,2508.0,0.37857968]
[1747548545598,3.98693576,2508.2,2508.0,0.37857968]
[1747548545800,3.98685688,2508.3,2508.0,0.37857968]
[1747548546899,3.98685688,2508.3,2507.9,0.37857968]
[1747548547095,3.98694709,2508.2,2507.9,0.37857968]
[1747548547300,3.98724082,2508.0,2507.9,0.37857968]
[1747548548705,3.98755881,2507.8,2507.5,1.6191]
[1747548549892,3.98747711,2507.9,2507.6,0.38080479]
[1747548550840,1.71424985,2507.9,2507.6,0.38080479]
[1747548551006,3.98771782,2507.7,2507.6,0.38080479]
[1747548552144,3.98762139,2507.8,2507.6,0.38080479]
[1747548552646,3.98771782,2507.7,2507.6,0.38080479]
[1747548553008,9.4026,2508.0,2507.6,0.38080479]
[1747548553232,1.0799321,2508.0,2507.7,1.6261]
[1747548553444,11.75820263,2508.1,2507.7,1.6261]
[1747548553651,7.771,2508.1,2507.7,1.6261]
[1747548553849,11.75817202,2508.1,2507.7,1.6261]
[1747548554147,3.98738213,2508.0,2507.7,1.6261]
[1747548554349,3.98740674,2507.9,2507.7,1.6261]
[1747548554514,3.98755881,2507.8,2507.5,1.6261]
[1747548554715,2.97802095,2507.9,2507.4,0.47276115]
[1747548554921,4.05292305,2507.9,2507.4,0.47276115]
[1747548555134,3.98803589,2507.5,2507.4,0.47276115]
[1747548555449,3.98793669,2507.6,2507.4,0.47276115]
[1747548556018,3.98793669,2507.6,2507.4,0.85344476]
[1747548556557,3.98803589,2507.5,2507.4,0.85344476]
[1747548557251,3.98791182,2507.6,2507.3,0.38068361]
[1747548557751,3.98816788,2507.5,2507.3,0.38068361]
[1747548558247,3.98793554,2507.6,2507.3,0.38068361]
[1747548558436,3.98793554,2507.6,2507.2,0.38068361]
[1747548558748,3.98804672,2507.5,2507.2,0.38068361]
[1747548559750,3.9879344,2507.6,2507.2,0.38068361]
[1747548560856,3.9879344,2507.6,2507.3,0.38068361]
[1747548562372,3.9879344,2507.6,2507.2,0.38068361]
[1747548562953,3.98779691,2507.7,2507.2,0.38068361]
[1747548564169,3.98779691,2507.7,2507.3,0.38068361]
[1747548565273,3.98798257,2507.6,2507.4,0.38068361]
[1747548566270,3.98803589,2507.5,2507.4,0.38068361]
[1747548566577,4.78552018,2507.6,2507.1,2.09886115]
[1747548566752,3.98794987,2507.6,2507.1,2.09886115]
[1747548567889,3.98794987,2507.6,2507.2,0.38068848]
[1747548569901,3.98794987,2507.6,2507.3,0.38068848]
[1747548570798,3.98794987,2507.6,2507.4,0.38068848]
[1747548571197,3.98772379,2507.7,2507.5,1.6069]
[1747548571400,3.98772379,2507.7,2507.4,0.38068848]
[1747548572752,9.14972095,2508.1,2507.3,1.64678268]
[1747548572753,1.5873,2508.1,2507.3,1.64678268]
[1747548573005,7.757,2508.2,2507.5,3.98802791]
[1747548573156,7.757,2508.2,2507.7,1.5016]
[1747548573356,11.74394206,2508.2,2507.7,1.5016]
[1747548573857,7.757,2508.2,2507.7,1.5016]
[1747548574054,11.74392884,2508.2,2507.8,0.3803515]
[1747548574755,7.757,2508.2,2507.8,0.3803515]
[1747548575694,7.757,2508.2,2507.9,0.3803515]
[1747548575904,11.74394867,2508.2,2507.9,0.3803515]
[1747548576093,13.28313525,2508.2,2507.9,0.3803515]
[1747548576391,3.98708185,2508.1,2507.9,0.3803515]
[1747548576599,9.29618658,2508.2,2507.9,0.3803515]
[1747548577308,5.52611608,2508.2,2507.9,0.3803515]
[1747548577626,5.52611608,2508.2,2507.8,0.3803515]
[1747548578192,3.98693355,2508.2,2507.8,0.3803515]
[1747548578389,27.49253811,2508.3,2507.8,0.3803515]
[1747548578776,22.109,2508.3,2507.8,4.36786623]
[1747548579008,22.109,2508.3,2507.8,0.3803515]
[1747548579198,22.109,2508.3,2507.9,0.3803515]
[1747548580219,22.109,2508.3,2508.0,0.3803515]
[1747548580580,3.98708185,2508.1,2508.0,0.3803515]
[1747548582218,3.98699778,2508.2,2508.0,0.3803515]
[1747548583029,3.98699778,2508.2,2507.8,0.3803515]
[1747548584228,22.108,2508.3,2507.8,4.36789545]
[1747548584424,22.108,2508.3,2507.8,0.3803515]
[1747548584726,3.98696945,2508.2,2507.9,0.3803515]
[1747548585613,3.00816302,2508.2,2507.9,0.3803515]
[1747548585817,3.98718748,2508.1,2507.9,0.3803515]
[1747548586409,3.98718748,2508.1,2508.0,0.3803515]
[1747548587615,6.93860843,2508.1,2508.0,0.3803515]
[1747548587817,3.98743943,2507.9,2507.6,0.47276115]
[1747548588292,3.9872866,2508.0,2507.6,0.47276115]
[1747548588990,1.39338426,2508.0,2507.6,0.47276115]
[1747548589317,3.98750519,2507.9,2507.6,0.38023314]
[1747548590739,3.98750519,2507.9,2507.7,0.38023314]
[1747548591213,3.98729552,2508.0,2507.7,0.38023314]
[1747548591414,3.98741236,2507.9,2507.7,0.38023314]
[1747548592137,3.98755881,2507.8,2507.7,0.38023314]
[1747548592317,4.78505593,2507.8,2507.7,0.38023314]
[1747548592731,3.98787685,2507.6,2507.5,0.38023314]
[1747548592928,11.72974733,2507.7,2507.5,0.38023314]
[1747548593236,6.40048175,2507.8,2507.5,0.38023314]
[1747548593544,11.72959311,2507.8,2507.5,0.38023314]
[1747548594247,11.72959311,2507.8,2507.4,0.38023314]
[1747548594248,3.98775362,2507.7,2507.4,0.38023314]
[1747548594539,3.98791417,2507.6,2507.4,0.38023314]
[1747548595130,11.72958598,2507.8,2507.4,0.38023314]
[1747548595131,9.3574,2507.8,2507.4,0.38023314]
[1747548595338,3.98799738,2507.6,2507.4,0.38023314]
[1747548595514,3.98803589,2507.5,2507.4,0.38023314]
[1747548596309,3.9879366,2507.6,2507.4,0.38023314]
[1747548596943,3.9879366,2507.6,2507.2,0.38023314]
[1747548597326,13.34499374,2507.8,2507.2,0.38023314]
[1747548597327,3.988354,2507.3,2507.2,0.38023314]
[1747548597530,4.52686149,2507.3,2507.2,0.38023314]
[1747548597849,3.988354,2507.3,2507.2,0.38023314]
[1747548598750,3.988354,2507.3,2507.0,0.38023314]
[1747548600777,11.731354,2507.3,2507.0,0.38023314]
[1747548601461,6.9020122,2507.5,2507.0,0.38023314]
[1747548601632,7.743,2507.4,2507.0,0.38023314]
[1747548601832,7.743,2507.4,2507.0,1.98003314]
[1747548601833,11.73123135,2507.4,2507.0,1.98003314]
[1747548602553,3.98823135,2507.4,2507.0,1.98003314]
[1747548602732,7.743,2507.3,2507.1,0.38023314]
[1747548603659,11.73144674,2507.3,2507.1,0.38023314]
[1747548603845,3.98844674,2507.3,2507.1,0.38023314]
[1747548604046,3.98851308,2507.2,2507.1,0.38023314]
[1747548604761,11.73141459,2507.3,2507.1,0.38023314]
[1747548605149,11.73141459,2507.3,2506.9,0.38023314]
[1747548605457,3.98870764,2507.1,2506.9,0.38023314]
[1747548606157,3.98883127,2507.0,2506.9,0.38023314]
[1747548606363,5.57185425,2507.2,2506.9,0.38023314]
[1747548606364,5.7004395,2507.1,2506.9,0.38023314]
[1747548606567,1.7116905,2507.1,2506.9,0.38023314]
[1747548606857,5.70046944,2507.1,2506.9,0.38023314]
[1747548607056,3.98877894,2507.1,2506.9,0.38023314]
[1747548607276,3.98876059,2507.1,2506.9,0.38023314]
[1747548608051,3.98867217,2507.1,2506.9,0.38023314]
[1747548608285,3.98867217,2507.1,2506.7,0.38023314]
[1747548608984,3.98885616,2507.0,2506.7,0.38023314]
[1747548609184,1.39672095,2507.1,2506.7,0.38023314]
[1747548609358,3.98900691,2506.9,2506.7,0.38023314]
[1747548609564,3.98900691,2506.9,2506.6,1.5866]
[1747548609989,3.98918569,2506.8,2506.5,0.47276115]
[1747548611251,4.28690493,2507.0,2506.5,0.47276115]
[1747548611570,7.744,2507.0,2506.5,4.46223467]
[1747548611760,7.744,2507.0,2506.7,1.6111]
[1747548615506,7.744,2507.0,2506.8,0.3806961]
[1747548616015,3.98868549,2507.1,2506.8,0.3806961]
[1747548616208,3.98859498,2507.2,2506.8,0.3806961]
[1747548616407,7.744,2507.1,2506.8,0.3806961]
[1747548616707,7.744,2507.0,2506.8,0.3806961]
[1747548616870,3.98851308,2507.2,2506.8,0.3806961]
[1747548617070,7.744,2507.1,2506.8,0.3806961]
[1747548617288,7.744,2507.1,2506.7,1.6111]
[1747548619717,11.73274277,2507.1,2506.7,1.6111]
[1747548620125,11.73274277,2507.1,2506.8,0.38121664]
[1747548620426,3.98883127,2507.0,2506.8,0.38121664]
[1747548620591,3.98899038,2506.9,2506.8,0.38121664]
[1747548621324,3.98899038,2506.9,2506.4,11.46470567]
[1747548621918,1.6222,2507.0,2506.4,3.46470567]
[1747548622425,3.9891188,2506.9,2506.4,3.46470567]
[1747548622918,3.9891188,2506.9,2506.5,0.38154886]
[1747548623721,5.61106841,2507.0,2506.5,0.38154886]
[1747548623921,3.98917285,2506.8,2506.5,0.38154886]
[1747548624081,3.98899038,2506.9,2506.5,0.38154886]
[1747548624284,3.98924455,2506.8,2506.5,0.38154886]
[1747548624700,3.98924455,2506.8,2506.6,0.38154886]
[1747548625693,3.98930865,2506.7,2506.6,0.38154886]
[1747548625910,3.98910847,2506.9,2506.6,0.38154886]
[1747548626220,11.7191548,2506.8,2506.6,0.38154886]
[1747548627725,11.7191548,2506.8,2506.4,1.38044452]
[1747548627926,3.98931247,2506.7,2506.4,1.38044452]
[1747548628302,3.98931247,2506.7,2506.2,2.10746115]
[1747548628303,5.38634791,2506.5,2506.2,0.47276115]
[1747548628602,3.98980482,2506.4,2506.2,0.47276115]
[1747548629937,3.98994533,2506.3,2506.2,0.47276115]
[1747548630240,3.98986669,2506.4,2506.2,0.47276115]
[1747548630831,3.98994533,2506.3,2506.2,0.47276115]
[1747548631442,11.72094533,2506.3,2506.1,0.38183467]
[1747548631650,7.731,2506.3,2506.1,0.38183467]
[1747548631822,11.72100953,2506.3,2506.1,0.38183467]
[1747548632211,7.731,2506.3,2506.1,0.38183467]
[1747548632419,11.72095672,2506.3,2506.1,0.38183467]
[1747548632847,11.72095672,2506.3,2505.8,0.47276115]
[1747548633055,7.36014921,2506.6,2505.9,1.5186]
[1747548633256,7.731,2506.3,2506.0,1.5186]
[1747548633560,7.731,2506.3,2506.0,5.50895342]
[1747548633744,7.731,2506.3,2506.0,1.5186]
[1747548635465,7.731,2506.3,2505.9,0.47276115]
[1747548635831,11.72104648,2506.3,2505.9,0.47276115]
[1747548636044,11.72104648,2506.3,2506.0,0.38139119]
[1747548636761,7.731,2506.3,2506.0,0.38139119]
[1747548637362,7.731,2506.3,2506.1,0.38139119]
[1747548637873,11.72101249,2506.3,2506.1,0.38139119]
[1747548638274,13.45110123,2506.3,2506.1,0.38139119]
[1747548638774,13.45110123,2506.3,2505.8,1.5186]
[1747548638975,11.72101249,2506.3,2505.8,1.5186]
[1747548639274,11.72102841,2506.3,2505.8,1.5186]
[1747548640069,11.62102841,2506.3,2505.8,1.5186]
[1747548640471,7.631,2506.3,2505.9,0.38102392]
[1747548640665,7.732,2506.2,2505.9,0.38102392]
[1747548641970,7.732,2506.2,2506.0,0.38102392]
[1747548643679,7.732,2506.2,2505.8,1.5186]
[1747548644976,7.732,2506.2,2505.9,0.38092174]
[1747548645474,11.72211692,2506.2,2505.9,0.38092174]
[1747548646040,7.732,2506.2,2505.9,0.38092174]
[1747548646481,11.72201451,2506.3,2505.9,0.38092174]
[1747548646683,11.72201451,2506.3,2505.8,1.5186]
[1747548648368,3.99010735,2506.2,2505.8,1.5186]
[1747548650783,5.56129731,2506.2,2505.9,0.38116096]
[1747548652489,3.99010735,2506.2,2505.9,0.38116096]
[1747548652786,11.72202261,2506.3,2505.9,0.38116096]
[1747548653288,11.72202261,2506.3,2506.0,0.38116096]
[1747548654488,11.72202261,2506.3,2505.9,0.38116096]
[1747548655600,3.99011441,2506.2,2505.9,0.38116096]
[1747548656294,3.99011441,2506.2,2505.8,1.5186]
[1747548656295,3.99011441,2506.2,2506.0,0.38116096]
[1747548657410,11.72196273,2506.3,2506.0,0.38116096]
[1747548657713,11.72195192,2506.3,2506.0,0.38116096]
[1747548657890,11.72195192,2506.3,2505.8,5.5092784]
[1747548657891,11.72195855,2506.3,2506.1,0.38116096]
[1747548658381,13.09508906,2506.3,2506.1,0.38116096]
[1747548658715,3.99010454,2506.2,2505.8,1.99136115]
[1747548660015,3.99010454,2506.2,2505.9,0.38210774]
[1747548661013,3.99010454,2506.2,2506.0,0.38210774]
[1747548662317,11.72198282,2506.3,2506.1,0.38210774]
[1747548662495,13.07810361,2506.3,2506.1,0.38210774]
[1747548664116,3.99010454,2506.2,2506.1,0.38210774]
[1747548664525,3.99010454,2506.2,2505.8,1.99136115]
[1747548666030,3.99010454,2506.2,2505.9,0.38228041]
[1747548667429,11.72201944,2506.3,2506.0,0.38228041]
[1747548668033,11.72194827,2506.3,2506.0,0.38228041]
[1747548669438,12.16064355,2506.3,2506.1,0.38228041]
[1747548670135,3.99010454,2506.2,2506.1,0.38228041]